Workbook

Sheet Sheet1
A1: 2025年太仓市夏季秸秆机械化还田补助清册
A2: 序号 | B2: 区镇 | C2: 实际种植户名称 | D2: 作业地点（村） | E2: 核查认可面积（亩） | F2: 补贴资金（元）
A3: 1 | B3: 城厢镇 | C3: 太仓市田展农场专业合作社 | D3: 电站村 | E3: 1100 | F3: =E3*10 -> 11000
A4: 2 | C4: 太仓市东林农场专业合作社 | D4: 东林村 | E4: 992.1 | F4: 9921
A5: 3 | C5: 太仓市乐胜农场专业合作社 | D5: 胜泾村 | E5: 333.09 | F5: 3330.9
A6: 4 | C6: 太仓市乐胜农场专业合作社 | D6: 太丰社区 | E6: 411.73 | F6: 4117.3
A7: 5 | C7: 太仓市东林农场专业合作社 | D7: 万丰村 | E7: 827.33 | F7: 8273.3
A8: 6 | C8: 太仓市海丰农场专业合作社 | D8: 万丰村 | E8: 2228 | F8: 22280
A9: 7 | C9: 太仓市乐胜农场专业合作社 | D9: 伟阳社区 | E9: 349.79 | F9: 3497.9
A10: 8 | C10: 太仓市乐胜农场专业合作社 | D10: 新农村 | E10: 3017.39 | F10: 30173.9
A11: 9 | C11: 太仓市丰缘农场专业合作社 | D11: 永丰村 | E11: 3390 | F11: 33900
A12: 小计 | E12: =SUM(E3:E11) -> 12649.43 | F12: 126494.3
A13: 10 | B13: 浮桥镇 | C13: 翟晓录 | D13: 丁泾村 | E13: 149 | F13: 1490
A14: 11 | C14: 翟宗升 | D14: 丁泾村 | E14: 274 | F14: 2740
A15: 12 | C15: 高文道 | D15: 丁泾村 | E15: 171 | F15: 1710
A16: 13 | C16: 李连升 | D16: 丁泾村 | E16: 275 | F16: 2750
A17: 14 | C17: 李业贵 | D17: 丁泾村 | E17: 28 | F17: 280
A18: 15 | C18: 万洁彬 | D18: 丁泾村 | E18: 208 | F18: 2080
A19: 16 | C19: 向东 | D19: 丁泾村 | E19: 180 | F19: 1800
A20: 17 | C20: 张军 | D20: 丁泾村 | E20: 293 | F20: 2930
A21: 18 | C21: 郑国良 | D21: 丁泾村 | E21: 252 | F21: 2520
A22: 19 | C22: 范文玉 | D22: 方桥村 | E22: 53.6 | F22: 536
A23: 20 | C23: 柯贵财 | D23: 方桥村 | E23: 100.6 | F23: 1006
A24: 21 | C24: 柯贵福 | D24: 方桥村 | E24: 98.4 | F24: 984
A25: 22 | C25: 柯贵付 | D25: 方桥村 | E25: 200.7 | F25: 2007
A26: 23 | C26: 乐家云 | D26: 方桥村 | E26: 102.8 | F26: 1028
A27: 24 | C27: 李年宏 | D27: 方桥村 | E27: 105.4 | F27: 1054
A28: 25 | C28: 陆柳琴 | D28: 方桥村 | E28: 91.7 | F28: 917
A29: 26 | C29: 太仓市明龙果蔬专业合作社 | D29: 方桥村 | E29: 179.1 | F29: 1791
A30: 27 | C30: 王晓军 | D30: 方桥村 | E30: 346.8 | F30: 3468
A31: 28 | C31: 熊向云 | D31: 方桥村 | E31: 161.8 | F31: 1618
A32: 29 | C32: 吴梅娟 | D32: 浮南社区 | E32: 55 | F32: 550
A33: 30 | C33: 夏名连 | D33: 浮南社区 | E33: 127 | F33: 1270
A34: 31 | C34: 项正荣 | D34: 浮南社区 | E34: 74 | F34: 740
A35: 32 | C35: 谢汕虎 | D35: 浮南社区 | E35: 254 | F35: 2540
A36: 33 | C36: 陈华连 | D36: 浮桥村 | E36: 610 | F36: 6100
A37: 34 | C37: 褚迎珍 | D37: 合作联社 | E37: 102 | F37: 1020
A38: 35 | C38: 含山县林头镇陈能余家庭农场 | D38: 合作联社 | E38: 297 | F38: 2970
A39: 36 | C39: 胡启凤 | D39: 合作联社 | E39: 123 | F39: 1230
A40: 37 | C40: 胡启云 | D40: 合作联社 | E40: 103 | F40: 1030
A41: 38 | C41: 柯贵付 | D41: 合作联社 | E41: 73 | F41: 730
A42: 39 | C42: 孔令胜 | D42: 合作联社 | E42: 207 | F42: 2070
A43: 40 | C43: 任俊友 | D43: 合作联社 | E43: 209 | F43: 2090
A44: 41 | C44: 宋国庆 | D44: 合作联社 | E44: 131 | F44: 1310
A45: 42 | C45: 苏州苏垦现代农业发展有限公司太仓分公司 | D45: 合作联社 | E45: 620 | F45: 6200
A46: 43 | C46: 太仓绿丰土肥服务专业合作社 | D46: 合作联社 | E46: 624 | F46: 6240
A47: 44 | C47: 太仓市丰稔种蒜种植专业合作社 | D47: 合作联社 | E47: 167 | F47: 1670
A48: 45 | C48: 太仓市浮桥镇华连农田耕种服务部 | D48: 合作联社 | E48: 1354 | F48: 13540
A49: 46 | C49: 太仓市浮桥镇欣顺土地耕作服务队 | D49: 合作联社 | E49: 451 | F49: 4510
A50: 47 | C50: 太仓市华然农业科技有限公司 | D50: 合作联社 | E50: 769.01 | F50: 7690.1
A51: 48 | C51: 宛家发 | D51: 合作联社 | E51: 186 | F51: 1860
A52: 49 | C52: 王法忠 | D52: 合作联社 | E52: 147 | F52: 1470
A53: 50 | C53: 魏安道 | D53: 合作联社 | E53: 160 | F53: 1600
A54: 51 | C54: 项正荣 | D54: 合作联社 | E54: 46 | F54: 460
A55: 52 | C55: 徐玉年 | D55: 合作联社 | E55: 64 | F55: 640
A56: 53 | C56: 张俊胜 | D56: 合作联社 | E56: 90 | F56: 900
A57: 54 | C57: 张晓进 | D57: 合作联社 | E57: 118 | F57: 1180
A58: 55 | C58: 张正甫 | D58: 合作联社 | E58: 120 | F58: 1200
A59: 56 | C59: 郑志军 | D59: 合作联社 | E59: 144 | F59: 1440
A60: 57 | C60: 朱光壮 | D60: 合作联社 | E60: 76 | F60: 760
A61: 58 | C61: 朱红宝 | D61: 合作联社 | E61: 148 | F61: 1480
A62: 59 | C62: 翟晓四 | D62: 建红社区 | E62: 14 | F62: 140
A63: 60 | C63: 陈海云 | D63: 九曲社区 | E63: 147 | F63: 1470
A64: 61 | C64: 储道松 | D64: 九曲社区 | E64: 100 | F64: 1000
A65: 62 | C65: 范文玉 | D65: 九曲社区 | E65: 260 | F65: 2600
A66: 63 | C66: 胡普兵 | D66: 九曲社区 | E66: 313 | F66: 3130
A67: 64 | C67: 向从托 | D67: 九曲社区 | E67: 196 | F67: =E67*10 -> 1960
A68: 65 | C68: 向泽友 | D68: 九曲社区 | E68: 119 | F68: 1190
A69: 66 | C69: 张海沧 | D69: 九曲社区 | E69: 93 | F69: 930
A70: 67 | C70: 张俊红 | D70: 九曲社区 | E70: 322 | F70: 3220
A71: 68 | C71: 陈大伟 | D71: 浪港村 | E71: 130 | F71: 1300
A72: 69 | C72: 段俊生 | D72: 浪港村 | E72: 162 | F72: 1620
A73: 70 | C73: 费炳阳 | D73: 浪港村 | E73: 159 | F73: 1590
A74: 71 | C74: 费祥 | D74: 浪港村 | E74: 160 | F74: 1600
A75: 72 | C75: 费晓勇 | D75: 浪港村 | E75: 168 | F75: 1680
A76: 73 | C76: 胡金庄 | D76: 浪港村 | E76: 126 | F76: 1260
A77: 74 | C77: 孙金龙 | D77: 浪港村 | E77: 114 | F77: 1140
A78: 75 | C78: 魏安平 | D78: 浪港村 | E78: 147 | F78: 1470
A79: 76 | C79: 尹学祥 | D79: 浪港村 | E79: 166 | F79: 1660
A80: 77 | C80: 张胜明 | D80: 浪港村 | E80: 173 | F80: 1730
A81: 78 | C81: 张晓进 | D81: 浪港村 | E81: 154 | F81: 1540
A82: 79 | C82: 朱光壮 | D82: 浪港村 | E82: 111 | F82: 1110
A83: 80 | C83: 陈直贵 | D83: 老闸社区 | E83: 165 | F83: 1650
A84: 81 | C84: 范文兵 | D84: 老闸社区 | E84: 565 | F84: 5650
A85: 82 | C85: 钱卫新 | D85: 老闸社区 | E85: 24 | F85: 240
A86: 83 | C86: 孙强 | D86: 老闸社区 | E86: 32 | F86: 320
A87: 84 | C87: 太仓市神闸果蔬专业合作社 | D87: 老闸社区 | E87: 62 | F87: 620
A88: 85 | C88: 王德喜 | D88: 老闸社区 | E88: 168 | F88: 1680
A89: 86 | C89: 宣玉明 | D89: 老闸社区 | E89: 946 | F89: 9460
A90: 87 | C90: 张炳红 | D90: 老闸社区 | E90: 114 | F90: 1140
A91: 88 | C91: 章长云 | D91: 老闸社区 | E91: 139 | F91: 1390
A92: 89 | C92: 朱新厂 | D92: 老闸社区 | E92: 385 | F92: 3850
A93: 90 | C93: 翟爱民 | D93: 绿化村 | E93: 278 | F93: 2780
A94: 91 | C94: 刘天平 | D94: 绿化村 | E94: 372 | F94: 3720
A95: 92 | C95: 沐建平 | D95: 绿化村 | E95: 209 | F95: 2090
A96: 93 | C96: 沐俊云 | D96: 绿化村 | E96: 271 | F96: 2710
A97: 94 | C97: 孙强 | D97: 绿化村 | E97: 152 | F97: 1520
A98: 95 | C98: 张建国 | D98: 绿化村 | E98: 260 | F98: 2600
A99: 96 | C99: 章长云 | D99: 绿化村 | E99: 75 | F99: 750
A100: 97 | C100: 朱阿林 | D100: 绿化村 | E100: 157 | F100: 1570
A101: 98 | C101: 朱勇胜 | D101: 绿化村 | E101: 496 | F101: 4960
A102: 99 | C102: 胡济选 | D102: 马北村 | E102: 367.4 | F102: 3674
A103: 100 | C103: 孙茂金 | D103: 马北村 | E103: 466.4 | F103: 4664
A104: 101 | C104: 孙照勇 | D104: 马北村 | E104: 348.8 | F104: 3488
A105: 102 | C105: 羊小勇 | D105: 马北村 | E105: 312.4 | F105: 3124
A106: 103 | C106: 张中 | D106: 马北村 | E106: 456.3 | F106: 4563
A107: 104 | C107: 郑苗全 | D107: 马北村 | E107: 348.7 | F107: 3487
A108: 105 | C108: 方明灿 | D108: 牌楼社区 | E108: 145 | F108: 1450
A109: 106 | C109: 顾云兵 | D109: 牌楼社区 | E109: 104 | F109: 1040
A110: 107 | C110: 钱扬春 | D110: 牌楼社区 | E110: 132 | F110: 1320
A111: 108 | C111: 太仓市浏河镇徐玉山农机服务部 | D111: 牌楼社区 | E111: 113 | F111: 1130
A112: 109 | C112: 太仓市鑫腾粮食种植家庭农场 | D112: 牌楼社区 | E112: 83 | F112: 830
A113: 110 | C113: 王军 | D113: 牌楼社区 | E113: 149 | F113: 1490
A114: 111 | C114: 王可兵 | D114: 牌楼社区 | E114: 195 | F114: 1950
A115: 112 | C115: 魏大兵 | D115: 牌楼社区 | E115: 173 | F115: 1730
A116: 113 | C116: 吴志华 | D116: 牌楼社区 | E116: 126 | F116: 1260
A117: 114 | C117: 余金明 | D117: 牌楼社区 | E117: 160 | F117: 1600
A118: 115 | C118: 章建忠 | D118: 牌楼社区 | E118: 130 | F118: 1300
A119: 116 | C119: 章耀兵 | D119: 牌楼社区 | E119: 140 | F119: 1400
A120: 117 | C120: 吕瞳 | D120: 七丫村 | E120: 515.6 | F120: 5156
A121: 118 | C121: 太仓和亿农业发展有限公司 | D121: 七丫村 | E121: 436.1 | F121: 4361
A122: 119 | C122: 太仓市浮桥镇欣顺土地耕作服务队 | D122: 七丫村 | E122: 113.7 | F122: 1137
A123: 120 | C123: 太仓市华然农业科技有限公司 | D123: 七丫村 | E123: 354.5 | F123: 3545
A124: 121 | C124: 陈胜良 | D124: 茜泾村 | E124: 337.6 | F124: 3376
A125: 122 | C125: 翟华军 | D125: 茜泾村 | E125: 178 | F125: 1780
A126: 123 | C126: 翟金付 | D126: 茜泾村 | E126: 468 | F126: 4680
A127: 124 | C127: 翟小龙 | D127: 茜泾村 | E127: 547.7 | F127: 5477
A128: 125 | C128: 蒋尚志 | D128: 茜泾村 | E128: 322.1 | F128: 3221
A129: 126 | C129: 蒋志华 | D129: 茜泾村 | E129: 365.5 | F129: 3655
A130: 127 | C130: 沐昌信 | D130: 茜泾村 | E130: 95.4 | F130: 954
A131: 128 | C131: 盛家勇 | D131: 茜泾村 | E131: 133.8 | F131: =E131*10 -> 1338
A132: 129 | C132: 王守道 | D132: 茜泾村 | E132: 161.3 | F132: 1613
A133: 130 | C133: 夏名生 | D133: 茜泾村 | E133: 156.3 | F133: 1563
A134: 131 | C134: 徐智山 | D134: 茜泾村 | E134: 412.4 | F134: 4124
A135: 132 | C135: 张跃忠 | D135: 茜泾村 | E135: 40.1 | F135: 401
A136: 133 | C136: 郑苗鑫 | D136: 茜泾村 | E136: 269.9 | F136: 2699
A137: 134 | C137: 朱长根 | D137: 茜泾村 | E137: 157.1 | F137: 1571
A138: 135 | C138: 陈雪明 | D138: 三市村 | E138: 173 | F138: 1730
A139: 136 | C139: 范吉青 | D139: 三市村 | E139: 501 | F139: 5010
A140: 137 | C140: 范文兵 | D140: 三市村 | E140: 322 | F140: 3220
A141: 138 | C141: 黄涛 | D141: 三市村 | E141: 197 | F141: 1970
A142: 139 | C142: 沈灿苗 | D142: 三市村 | E142: 138 | F142: 1380
A143: 140 | C143: 王国兵 | D143: 三市村 | E143: 553 | F143: 5530
A144: 141 | C144: 王先奇 | D144: 三市村 | E144: 285 | F144: 2850
A145: 142 | C145: 章尧兴 | D145: 三市村 | E145: 232 | F145: 2320
A146: 143 | C146: 周燕 | D146: 三市村 | E146: 349 | F146: 3490
A147: 144 | C147: 范文强 | D147: 时思村 | E147: 185.5 | F147: 1855
A148: 145 | C148: 胡启会 | D148: 时思村 | E148: 102.5 | F148: 1025
A149: 146 | C149: 黄文付 | D149: 时思村 | E149: 140.7 | F149: 1407
A150: 147 | C150: 李加友 | D150: 时思村 | E150: 244.3 | F150: 2443
A151: 148 | C151: 梁苏启 | D151: 时思村 | E151: 335.1 | F151: 3351
A152: 149 | C152: 权良龙 | D152: 时思村 | E152: 172 | F152: 1720
A153: 150 | C153: 童晓年 | D153: 时思村 | E153: 260.9 | F153: 2609
A154: 151 | C154: 王慧兰 | D154: 时思村 | E154: 105.36 | F154: 1053.6
A155: 152 | C155: 伍万昌 | D155: 时思村 | E155: 302.5 | F155: 3025
A156: 153 | C156: 尹学祥 | D156: 时思村 | E156: 218.74 | F156: 2187.4
A157: 154 | C157: 张胜明 | D157: 时思村 | E157: 120.6 | F157: 1206
A158: 155 | C158: 张宗俊 | D158: 时思村 | E158: 121.8 | F158: 1218
A159: 156 | C159: 范华根 | D159: 时思社区 | E159: 325 | F159: 3250
A160: 157 | C160: 范水根 | D160: 时思社区 | E160: 97 | F160: 970
A161: 158 | C161: 范文强 | D161: 时思社区 | E161: 178 | F161: 1780
A162: 159 | C162: 林悦湘 | D162: 时思社区 | E162: 176 | F162: 1760
A163: 160 | C163: 孙云霞 | D163: 时思社区 | E163: 265 | F163: 2650
A164: 161 | C164: 童朝军 | D164: 时思社区 | E164: 212 | F164: 2120
A165: 162 | C165: 汪章礼 | D165: 时思社区 | E165: 89 | F165: 890
A166: 163 | C166: 魏凤华 | D166: 时思社区 | E166: 259 | F166: 2590
A167: 164 | C167: 谢宗生 | D167: 时思社区 | E167: 195 | F167: 1950
A168: 165 | C168: 段俊生 | D168: 时思社区 | E168: 142 | F168: 1420
A169: 166 | C169: 张宗俊 | D169: 时思社区 | E169: 62 | F169: 620
A170: 167 | C170: 太仓新纪元农场专业合作社 | D170: 新邵村 | E170: 1390 | F170: 13900
A171: 小计 | E171: =SUM(E13:E170) -> 36589.01 | F171: 365890.1
A172: 168 | B172: 璜泾镇 | C172: 陈俊良 | D172: 荡茜 | E172: 916 | F172: 9160
A173: 169 | C173: 陈恩保 | D173: 孟河村 | E173: 176 | F173: 1760
A174: 170 | C174: 陈月琴 | D174: 孟河村 | E174: 76 | F174: 760
A175: 171 | C175: 陈直理 | D175: 孟河村 | E175: 248 | F175: 2480
A176: 172 | C176: 付世礼 | D176: 孟河村 | E176: 250 | F176: 2500
A177: 173 | C177: 付世明 | D177: 孟河村 | E177: 220 | F177: 2200
A178: 174 | C178: 傅为林 | D178: 孟河村 | E178: 25 | F178: 250
A179: 175 | C179: 高惠林 | D179: 孟河村 | E179: 64 | F179: 640
A180: 176 | C180: 孔令舟 | D180: 孟河村 | E180: 244 | F180: 2440
A181: 177 | C181: 王东兵 | D181: 孟河村 | E181: 286 | F181: 2860
A182: 178 | C182: 王耀坤 | D182: 孟河村 | E182: 79 | F182: 790
A183: 179 | C183: 魏元存 | D183: 孟河村 | E183: 260 | F183: 2600
A184: 180 | C184: 魏元能 | D184: 孟河村 | E184: 223 | F184: 2230
A185: 181 | C185: 谢中富 | D185: 孟河村 | E185: 282 | F185: 2820
A186: 182 | C186: 许志强 | D186: 孟河村 | E186: 276 | F186: 2760
A187: 183 | C187: 张修龙 | D187: 孟河村 | E187: 14 | F187: 140
A188: 184 | C188: 周志全 | D188: 孟河村 | E188: 317 | F188: 3170
A189: 185 | C189: 朱利民 | D189: 孟河村 | E189: 78 | F189: 780
A190: 186 | C190: 太仓市广丰农场专业合作社 | D190: 荣文村 | E190: 2174 | F190: 21740
A191: 187 | C191: 陈直贵 | D191: 孙桥村 | E191: 112.42 | F191: 1124.2
A192: 188 | C192: 顾锦明 | D192: 孙桥村 | E192: 181.72 | F192: 1817.2
A193: 189 | C193: 郎国良 | D193: 孙桥村 | E193: 62.37 | F193: 623.7
A194: 190 | C194: 李济文 | D194: 孙桥村 | E194: 98.56 | F194: 985.6
A195: 191 | C195: 沐春生 | D195: 孙桥村 | E195: 130.13 | F195: =E195*10 -> 1301.3
A196: 192 | C196: 太仓市家欣农场专业合作社 | D196: 孙桥村 | E196: 360.14 | F196: 3601.4
A197: 193 | C197: 汪章中 | D197: 孙桥村 | E197: 174.79 | F197: 1747.9
A198: 194 | C198: 徐桂林 | D198: 孙桥村 | E198: 287.98 | F198: 2879.8
A199: 195 | C199: 叶廷兴 | D199: 孙桥村 | E199: 110.11 | F199: 1101.1
A200: 196 | C200: 张东烨 | D200: 孙桥村 | E200: 164.78 | F200: 1647.8
... 145 more rows
